[Event "Titled Tuesday Blitz January 11 2022"]
[White "Talibov, Shiroghlan"]
[Black "Kalashian, David"]
[WhiteFideId "13429078"]
[BlackFideId "13302418"]
[WhiteElo "2070"]
[BlackElo "2490"]
[Result "0-1"]
[Round "07"]
[TimeControl "180+1"]
[Date "2022.01.11"]
[WhiteClock "0:00:03"]
[BlackClock "0:00:07"]

1. c4 {[%clk 0:03:00]}  Nf6 {[%clk 0:02:57]} 2. Nc3 {[%clk 0:03:01]}  g6 {[%clk 0:02:57]} 3. e4 {[%clk 0:03:01]}  d6 {[%clk 0:02:57]} 4. d4 {[%clk 0:03:01]}  Bg7 {[%clk 0:02:58]} 5. Be2 {[%clk 0:03:01]}  O-O {[%clk 0:02:57]} 6. Nf3 {[%clk 0:03:01]}  Bg4 {[%clk 0:02:58]} 7. Be3 {[%clk 0:02:59]}  c5 {[%clk 0:02:54]} 8. d5 {[%clk 0:02:55]}  a6 {[%clk 0:02:51]} 9. a4 {[%clk 0:02:55]}  Nbd7 {[%clk 0:02:50]} 10. O-O {[%clk 0:02:48]}  Bxf3 {[%clk 0:02:30]} 11. Bxf3 {[%clk 0:02:48]}  b6 {[%clk 0:02:29]} 12. Be2 {[%clk 0:02:47]}  Rb8 {[%clk 0:02:28]} 13. f4 {[%clk 0:02:46]}  Qc7 {[%clk 0:02:24]} 14. Qd2 {[%clk 0:02:37]}  Rbd8 {[%clk 0:02:11]} 15. Bf3 {[%clk 0:02:32]}  e6 {[%clk 0:02:03]} 16. Rae1 {[%clk 0:02:21]}  exd5 {[%clk 0:01:40]} 17. exd5 {[%clk 0:02:22]}  Rfe8 {[%clk 0:01:36]} 18. Bf2 {[%clk 0:02:21]}  h5 {[%clk 0:01:27]} 19. h3 {[%clk 0:02:07]}  Rxe1 {[%clk 0:01:23]} 20. Rxe1 {[%clk 0:02:06]}  Re8 {[%clk 0:01:24]} 21. Rxe8+ {[%clk 0:01:59]}  Nxe8 {[%clk 0:01:25]} 22. Ne4 {[%clk 0:01:51]}  Nef6 {[%clk 0:01:20]} 23. Ng5 {[%clk 0:01:49]}  Nh7 {[%clk 0:01:20]} 24. Ne4 {[%clk 0:01:47]}  Nhf6 {[%clk 0:01:18]} 25. Nc3 {[%clk 0:01:35]}  Qd8 {[%clk 0:01:17]} 26. b3 {[%clk 0:01:31]}  Qe8 {[%clk 0:01:16]} 27. Bh4 {[%clk 0:01:28]}  Bh6 {[%clk 0:01:04]} 28. Bg5 {[%clk 0:01:17]}  Bxg5 {[%clk 0:01:03]} 29. fxg5 {[%clk 0:01:18]}  Nh7 {[%clk 0:01:02]} 30. Ne4 {[%clk 0:01:08]}  Ne5 {[%clk 0:01:01]} 31. Qf4 {[%clk 0:00:58]}  Qd8 {[%clk 0:00:54]} 32. h4 {[%clk 0:00:55]}  Kg7 {[%clk 0:00:48]} 33. Be2 {[%clk 0:00:41]}  Qe7 {[%clk 0:00:43]} 34. Kf1 {[%clk 0:00:34]}  Qd8 {[%clk 0:00:42]} 35. g3 {[%clk 0:00:30]}  Qe7 {[%clk 0:00:42]} 36. Bd1 {[%clk 0:00:19]}  Qd8 {[%clk 0:00:40]} 37. Bc2 {[%clk 0:00:18]}  Qe7 {[%clk 0:00:40]} 38. Kg2 {[%clk 0:00:17]}  Ng4 {[%clk 0:00:36]} 39. Bd1 {[%clk 0:00:15]}  Ne5 {[%clk 0:00:31]} 40. Be2 {[%clk 0:00:15]}  Qd8 {[%clk 0:00:31]} 41. Nf2 {[%clk 0:00:13]}  Qe7 {[%clk 0:00:29]} 42. Bf3 {[%clk 0:00:12]}  Nf8 {[%clk 0:00:25]} 43. g4 {[%clk 0:00:11]}  hxg4 {[%clk 0:00:24]} 44. Bxg4 {[%clk 0:00:12]}  Nxg4 {[%clk 0:00:20]} 45. Nxg4 {[%clk 0:00:07]}  Nd7 {[%clk 0:00:20]} 46. Nf2 {[%clk 0:00:07]}  f5 {[%clk 0:00:12]} 47. h5 {[%clk 0:00:07]}  Ne5 {[%clk 0:00:07]} 48. hxg6 {[%clk 0:00:05]}  Kxg6 {[%clk 0:00:08]} 49. Nh3 {[%clk 0:00:04]}  Nd3 {[%clk 0:00:08]} 50. Qf3 {[%clk 0:00:03]}  Ne1+ {[%clk 0:00:07]} 0-1


[Site "https://www.chess.com"]

[Event "Titled Tuesday Blitz January 11 2022"]
[White "Williams, Simon K"]
[Black "Rodrigue-Lemieux, Shawn"]
[WhiteFideId "404454"]
[BlackFideId "2620049"]
[WhiteElo "2468"]
[BlackElo "1763"]
[Result "1-0"]
[Round "07"]
[TimeControl "180+1"]
[Date "2022.01.11"]
[WhiteClock "0:01:00"]
[BlackClock "0:01:32"]

1. e4 {[%clk 0:03:00]}  c6 {[%clk 0:02:59]} 2. Bc4 {[%clk 0:02:59]}  d5 {[%clk 0:03:00]} 3. Bb3 {[%clk 0:02:59]}  Nf6 {[%clk 0:03:00]} 4. e5 {[%clk 0:02:58]}  Nfd7 {[%clk 0:02:59]} 5. d4 {[%clk 0:02:58]}  e6 {[%clk 0:03:00]} 6. c3 {[%clk 0:02:59]}  c5 {[%clk 0:03:00]} 7. Nf3 {[%clk 0:02:58]}  Nc6 {[%clk 0:03:00]} 8. O-O {[%clk 0:02:58]}  Be7 {[%clk 0:02:59]} 9. a3 {[%clk 0:02:54]}  b6 {[%clk 0:02:59]} 10. Bc2 {[%clk 0:02:53]}  Ba6 {[%clk 0:02:58]} 11. Re1 {[%clk 0:02:52]}  Rc8 {[%clk 0:02:58]} 12. b4 {[%clk 0:02:52]}  cxd4 {[%clk 0:02:56]} 13. cxd4 {[%clk 0:02:52]}  Bb7 {[%clk 0:02:49]} 14. Nbd2 {[%clk 0:02:46]}  b5 {[%clk 0:02:48]} 15. Nb3 {[%clk 0:02:44]}  Nb6 {[%clk 0:02:48]} 16. Nc5 {[%clk 0:02:44]}  Ba8 {[%clk 0:02:48]} 17. Be3 {[%clk 0:02:29]}  Nc4 {[%clk 0:02:47]} 18. Nd2 {[%clk 0:02:29]}  Nxe3 {[%clk 0:02:45]} 19. fxe3 {[%clk 0:02:27]}  O-O {[%clk 0:02:43]} 20. Qg4 {[%clk 0:02:07]}  g6 {[%clk 0:02:39]} 21. Rf1 {[%clk 0:01:59]}  Qe8 {[%clk 0:02:24]} 22. Bd3 {[%clk 0:01:56]}  Rb8 {[%clk 0:02:20]} 23. h4 {[%clk 0:01:55]}  a5 {[%clk 0:02:19]} 24. Rab1 {[%clk 0:01:50]}  axb4 {[%clk 0:02:19]} 25. axb4 {[%clk 0:01:51]}  Rc8 {[%clk 0:02:18]} 26. h5 {[%clk 0:01:49]}  Bxc5 {[%clk 0:02:09]} 27. bxc5 {[%clk 0:01:48]}  Qe7 {[%clk 0:02:07]} 28. Rxb5 {[%clk 0:01:44]}  Kh8 {[%clk 0:02:03]} 29. Rbb1 {[%clk 0:01:43]}  Rg8 {[%clk 0:02:01]} 30. Rf6 {[%clk 0:01:40]}  Rcf8 {[%clk 0:01:48]} 31. Rbf1 {[%clk 0:01:39]}  Nxe5 {[%clk 0:01:36]} 32. dxe5 {[%clk 0:01:37]}  d4 {[%clk 0:01:37]} 33. hxg6 {[%clk 0:01:14]}  dxe3 {[%clk 0:01:32]} 34. Rxf7 {[%clk 0:01:00]} 1-0


[Site "https://www.chess.com"]

[Event "Titled Tuesday Blitz January 11 2022"]
[White "Bacrot, Etienne"]
[Black "Babazada, Khazar"]
[WhiteFideId "605506"]
[BlackFideId "13413554"]
[WhiteElo "2673"]
[BlackElo "2418"]
[Result "0-1"]
[Round "08"]
[TimeControl "180+1"]
[Date "2022.01.11"]
[WhiteClock "0:00:01"]
[BlackClock "0:00:14"]

1. d4 {[%clk 0:03:00]}  Nf6 {[%clk 0:03:00]} 2. Nf3 {[%clk 0:03:01]}  g6 {[%clk 0:03:01]} 3. e3 {[%clk 0:03:01]}  Bg7 {[%clk 0:03:02]} 4. Be2 {[%clk 0:03:02]}  O-O {[%clk 0:03:02]} 5. b3 {[%clk 0:03:02]}  b6 {[%clk 0:03:03]} 6. Bb2 {[%clk 0:03:02]}  Bb7 {[%clk 0:03:04]} 7. O-O {[%clk 0:03:02]}  d6 {[%clk 0:03:04]} 8. c4 {[%clk 0:03:02]}  Nbd7 {[%clk 0:03:05]} 9. Nc3 {[%clk 0:03:03]}  Re8 {[%clk 0:03:05]} 10. a4 {[%clk 0:03:02]}  e5 {[%clk 0:03:06]} 11. a5 {[%clk 0:03:02]}  Rb8 {[%clk 0:03:06]} 12. a6 {[%clk 0:03:01]}  Ba8 {[%clk 0:03:06]} 13. Nb5 {[%clk 0:03:01]}  e4 {[%clk 0:02:50]} 14. Nd2 {[%clk 0:02:59]}  c6 {[%clk 0:02:36]} 15. Nxd6 {[%clk 0:02:54]}  Re6 {[%clk 0:02:36]} 16. c5 {[%clk 0:02:27]}  bxc5 {[%clk 0:02:34]} 17. N2c4 {[%clk 0:02:28]}  Nd5 {[%clk 0:02:33]} 18. Qd2 {[%clk 0:01:30]}  Rxb3 {[%clk 0:02:20]} 19. Qc2 {[%clk 0:01:19]}  Qb8 {[%clk 0:02:20]} 20. Nxe4 {[%clk 0:01:11]}  cxd4 {[%clk 0:02:01]} 21. Bxd4 {[%clk 0:01:09]}  Bxd4 {[%clk 0:01:24]} 22. exd4 {[%clk 0:01:10]}  Nf4 {[%clk 0:01:25]} 23. Rfe1 {[%clk 0:00:56]}  c5 {[%clk 0:01:18]} 24. Bf3 {[%clk 0:00:44]}  cxd4 {[%clk 0:01:07]} 25. Rab1 {[%clk 0:00:31]}  Rxb1 {[%clk 0:01:05]} 26. Rxb1 {[%clk 0:00:32]}  Qc7 {[%clk 0:01:05]} 27. Ng5 {[%clk 0:00:26]}  d3 {[%clk 0:00:29]} 28. Qd2 {[%clk 0:00:19]}  Bxf3 {[%clk 0:00:24]} 29. Nxe6 {[%clk 0:00:17]}  Nxe6 {[%clk 0:00:24]} 30. Qxd3 {[%clk 0:00:11]}  Bc6 {[%clk 0:00:23]} 31. Qd6 {[%clk 0:00:10]}  Qxd6 {[%clk 0:00:20]} 32. Nxd6 {[%clk 0:00:11]}  Ndc5 {[%clk 0:00:21]} 33. Nc8 {[%clk 0:00:08]}  Nxa6 {[%clk 0:00:20]} 34. Ne7+ {[%clk 0:00:09]}  Kg7 {[%clk 0:00:19]} 35. Nxc6 {[%clk 0:00:09]}  Nac5 {[%clk 0:00:19]} 36. Nxa7 {[%clk 0:00:10]}  Ne4 {[%clk 0:00:18]} 37. g3 {[%clk 0:00:10]}  Nc3 {[%clk 0:00:19]} 38. Ra1 {[%clk 0:00:10]}  Nd4 {[%clk 0:00:19]} 39. Kg2 {[%clk 0:00:10]}  Nf5 {[%clk 0:00:18]} 40. Ra3 {[%clk 0:00:10]}  Ne4 {[%clk 0:00:18]} 41. Nb5 {[%clk 0:00:09]}  h5 {[%clk 0:00:19]} 42. Nc3 {[%clk 0:00:09]}  Nf6 {[%clk 0:00:19]} 43. h3 {[%clk 0:00:09]}  g5 {[%clk 0:00:18]} 44. Ra5 {[%clk 0:00:07]}  Kg6 {[%clk 0:00:18]} 45. Nd5 {[%clk 0:00:07]}  Nxd5 {[%clk 0:00:18]} 46. Rxd5 {[%clk 0:00:07]}  f6 {[%clk 0:00:19]} 47. Ra5 {[%clk 0:00:07]}  Ng7 {[%clk 0:00:18]} 48. Kf3 {[%clk 0:00:07]}  Ne6 {[%clk 0:00:18]} 49. Ke4 {[%clk 0:00:07]}  Ng7 {[%clk 0:00:18]} 50. Ra6 {[%clk 0:00:08]}  Nf5 {[%clk 0:00:18]} 51. g4 {[%clk 0:00:07]}  hxg4 {[%clk 0:00:17]} 52. hxg4 {[%clk 0:00:07]}  Nh6 {[%clk 0:00:17]} 53. f3 {[%clk 0:00:07]}  Nf7 {[%clk 0:00:17]} 54. Ra5 {[%clk 0:00:06]}  Nd8 {[%clk 0:00:16]} 55. Kd5 {[%clk 0:00:06]}  Kf7 {[%clk 0:00:14]} 56. Ra7+ {[%clk 0:00:05]}  Kg6 {[%clk 0:00:15]} 57. Kd6 {[%clk 0:00:03]}  Nf7+ {[%clk 0:00:15]} 58. Ke6 {[%clk 0:00:03]}  Ne5 {[%clk 0:00:16]} 59. Ra3 {[%clk 0:00:02]}  Nc4 {[%clk 0:00:15]} 60. Ra6 {[%clk 0:00:01]}  Nd2 {[%clk 0:00:15]} 61. Ra3 {[%clk 0:00:01]}  Nc4 {[%clk 0:00:16]} 62. Rc3 {[%clk 0:00:02]}  Ne5 {[%clk 0:00:15]} 63. Ke7 {[%clk 0:00:02]}  Kg7 {[%clk 0:00:15]} 64. Ra3 {[%clk 0:00:01]}  Nc6+ {[%clk 0:00:14]} 65. Kd6 {[%clk 0:00:01]}  Ne5 {[%clk 0:00:14]} 66. Ke6 {[%clk 0:00:01]}  Kg6 {[%clk 0:00:14]} 67. Ke7 {[%clk 0:00:01]}  Nc4 {[%clk 0:00:14]} 0-1


[Site "https://www.chess.com"]

[Event "Titled Tuesday Blitz January 11 2022"]
[White "Costachi, Mihnea"]
[Black "Papasimakopoulos, Alexandros"]
[WhiteFideId "1217518"]
[BlackFideId "4244125"]
[WhiteElo "2464"]
[BlackElo "2340"]
[Result "1-0"]
[Round "08"]
[TimeControl "180+1"]
[Date "2022.01.11"]
[WhiteClock "0:00:09"]
[BlackClock "0:00:05"]

1. e4 {[%clk 0:03:00]}  e6 {[%clk 0:02:39]} 2. Qe2 {[%clk 0:02:58]}  c5 {[%clk 0:02:39]} 3. b3 {[%clk 0:02:57]}  Nc6 {[%clk 0:02:39]} 4. Bb2 {[%clk 0:02:58]}  Nd4 {[%clk 0:02:30]} 5. Qd1 {[%clk 0:02:57]}  d5 {[%clk 0:02:24]} 6. exd5 {[%clk 0:02:53]}  Qxd5 {[%clk 0:02:22]} 7. Ne2 {[%clk 0:02:51]}  Nf6 {[%clk 0:02:10]} 8. Nbc3 {[%clk 0:02:40]}  Qf5 {[%clk 0:02:04]} 9. Nxd4 {[%clk 0:02:35]}  cxd4 {[%clk 0:02:05]} 10. Nb5 {[%clk 0:02:31]}  Qe5+ {[%clk 0:01:59]} 11. Qe2 {[%clk 0:02:27]}  Qc5 {[%clk 0:01:59]} 12. Bxd4 {[%clk 0:02:23]}  Qxc2 {[%clk 0:01:57]} 13. Bc3 {[%clk 0:02:12]}  Nd5 {[%clk 0:01:52]} 14. Qc4 {[%clk 0:02:12]}  Qg6 {[%clk 0:01:22]} 15. Bd3 {[%clk 0:02:01]}  Qxg2 {[%clk 0:01:22]} 16. Be4 {[%clk 0:01:57]}  Qg5 {[%clk 0:01:14]} 17. O-O-O {[%clk 0:01:33]}  a6 {[%clk 0:01:13]} 18. Bxd5 {[%clk 0:01:32]}  axb5 {[%clk 0:01:09]} 19. Bc6+ {[%clk 0:01:19]}  Bd7 {[%clk 0:00:56]} 20. Bxd7+ {[%clk 0:01:13]}  Kxd7 {[%clk 0:00:57]} 21. Qe4 {[%clk 0:00:55]}  Qd5 {[%clk 0:00:57]} 22. Qxd5+ {[%clk 0:00:48]}  exd5 {[%clk 0:00:57]} 23. Kb1 {[%clk 0:00:49]}  Rg8 {[%clk 0:00:51]} 24. Rhg1 {[%clk 0:00:49]}  g6 {[%clk 0:00:51]} 25. Bd4 {[%clk 0:00:46]}  Bd6 {[%clk 0:00:47]} 26. h4 {[%clk 0:00:45]}  Rge8 {[%clk 0:00:47]} 27. h5 {[%clk 0:00:42]}  Re4 {[%clk 0:00:47]} 28. Bb2 {[%clk 0:00:41]}  Re2 {[%clk 0:00:45]} 29. Rg5 {[%clk 0:00:39]}  Ke6 {[%clk 0:00:34]} 30. Rg4 {[%clk 0:00:28]}  Re8 {[%clk 0:00:25]} 31. f4 {[%clk 0:00:26]}  Kd7 {[%clk 0:00:20]} 32. Rg5 {[%clk 0:00:26]}  Bxf4 {[%clk 0:00:15]} 33. Rxd5+ {[%clk 0:00:26]}  Kc6 {[%clk 0:00:16]} 34. Rd3 {[%clk 0:00:24]}  Be5 {[%clk 0:00:15]} 35. Ba3 {[%clk 0:00:20]}  Kb6 {[%clk 0:00:12]} 36. Rc1 {[%clk 0:00:20]}  Bf4 {[%clk 0:00:08]} 37. Bc5+ {[%clk 0:00:20]}  Ka6 {[%clk 0:00:08]} 38. b4 {[%clk 0:00:21]}  b6 {[%clk 0:00:07]} 39. Bd6 {[%clk 0:00:10]}  Rxd2 {[%clk 0:00:05]} 40. Ra3+ {[%clk 0:00:08]}  Kb7 {[%clk 0:00:05]} 41. Rc7+ {[%clk 0:00:09]}  Kb8 {[%clk 0:00:05]} 42. Bxf4 {[%clk 0:00:08]}  Rd4 {[%clk 0:00:05]} 43. Rxf7+ {[%clk 0:00:05]}  Rxf4 {[%clk 0:00:02]} 44. Rxf4 {[%clk 0:00:06]}  Kb7 {[%clk 0:00:02]} 45. hxg6 {[%clk 0:00:06]}  Kc6 {[%clk 0:00:03]} 46. gxh7 {[%clk 0:00:06]}  Re1+ {[%clk 0:00:04]} 47. Kc2 {[%clk 0:00:06]}  Rh1 {[%clk 0:00:04]} 48. Rc3+ {[%clk 0:00:06]}  Kd5 {[%clk 0:00:05]} 49. Rf7 {[%clk 0:00:07]}  Rh2+ {[%clk 0:00:05]} 50. Kb3 {[%clk 0:00:07]}  Rh4 {[%clk 0:00:03]} 51. Rg3 {[%clk 0:00:08]}  Kd4 {[%clk 0:00:02]} 52. Rg8 {[%clk 0:00:07]}  Rh3+ {[%clk 0:00:03]} 53. Kc2 {[%clk 0:00:08]}  Rh2+ {[%clk 0:00:04]} 54. Kd1 {[%clk 0:00:08]}  Rh1+ {[%clk 0:00:04]} 55. Ke2 {[%clk 0:00:09]}  Rxh7 {[%clk 0:00:05]} 56. Rxh7 {[%clk 0:00:09]} 1-0


[Site "https://www.chess.com"]

[Event "Titled Tuesday Blitz January 11 2022"]
[White "Csonka, Balazs"]
[Black "Vokhidov, Shamsiddin"]
[WhiteFideId "742910"]
[BlackFideId "14204223"]
[WhiteElo "2404"]
[BlackElo "2611"]
[Result "0-1"]
[Round "08"]
[TimeControl "180+1"]
[Date "2022.01.11"]
[WhiteClock "0:00:01"]
[BlackClock "0:01:05"]

1. e4 {[%clk 0:03:00]}  c5 {[%clk 0:02:43]} 2. Nf3 {[%clk 0:03:00]}  d6 {[%clk 0:02:43]} 3. Bb5+ {[%clk 0:03:00]}  Nd7 {[%clk 0:02:43]} 4. O-O {[%clk 0:03:00]}  a6 {[%clk 0:02:42]} 5. Bd3 {[%clk 0:03:00]}  Ngf6 {[%clk 0:02:42]} 6. c3 {[%clk 0:03:00]}  b5 {[%clk 0:02:42]} 7. a4 {[%clk 0:03:00]}  c4 {[%clk 0:02:39]} 8. Be2 {[%clk 0:03:00]}  Bb7 {[%clk 0:02:39]} 9. axb5 {[%clk 0:03:00]}  axb5 {[%clk 0:02:40]} 10. Rxa8 {[%clk 0:03:00]}  Qxa8 {[%clk 0:02:41]} 11. Na3 {[%clk 0:03:00]}  Bc6 {[%clk 0:02:23]} 12. Nd4 {[%clk 0:02:51]}  Bxe4 {[%clk 0:02:21]} 13. Naxb5 {[%clk 0:02:40]}  Qb7 {[%clk 0:02:18]} 14. Re1 {[%clk 0:00:48]}  e5 {[%clk 0:02:14]} 15. Bxc4 {[%clk 0:00:39]}  Be7 {[%clk 0:02:09]} 16. f3 {[%clk 0:00:29]}  Bg6 {[%clk 0:02:08]} 17. Nc2 {[%clk 0:00:22]}  O-O {[%clk 0:02:06]} 18. Bf1 {[%clk 0:00:21]}  e4 {[%clk 0:01:34]} 19. Ncd4 {[%clk 0:00:17]}  d5 {[%clk 0:01:33]} 20. d3 {[%clk 0:00:15]}  Bc5 {[%clk 0:01:30]} 21. Kh1 {[%clk 0:00:15]}  Ne5 {[%clk 0:01:25]} 22. dxe4 {[%clk 0:00:11]}  dxe4 {[%clk 0:01:25]} 23. Bf4 {[%clk 0:00:11]}  Re8 {[%clk 0:01:14]} 24. b4 {[%clk 0:00:08]}  Bf8 {[%clk 0:01:12]} 25. Bxe5 {[%clk 0:00:07]}  Rxe5 {[%clk 0:01:13]} 26. f4 {[%clk 0:00:07]}  Re8 {[%clk 0:01:08]} 27. f5 {[%clk 0:00:08]}  Bh5 {[%clk 0:01:08]} 28. Be2 {[%clk 0:00:08]}  Bxe2 {[%clk 0:01:07]} 29. Qxe2 {[%clk 0:00:09]}  Nd5 {[%clk 0:01:07]} 30. Qc2 {[%clk 0:00:03]}  e3 {[%clk 0:01:06]} 31. Kg1 {[%clk 0:00:01]}  Nf4 {[%clk 0:01:06]} 32. Rf1 {[%clk 0:00:01]}  e2 {[%clk 0:01:05]} 0-1


[Site "https://www.chess.com"]

[Event "Titled Tuesday Blitz January 11 2022"]
[White "Daneshvar, Bardiya"]
[Black "Fridman, Daniel"]
[WhiteFideId "12576468"]
[BlackFideId "11600454"]
[WhiteElo "2295"]
[BlackElo "2514"]
[Result "1-0"]
[Round "08"]
[TimeControl "180+1"]
[Date "2022.01.11"]
[WhiteClock "0:00:51"]
[BlackClock "0:00:01"]

1. d4 {[%clk 0:03:00]}  d5 {[%clk 0:00:47]} 2. c4 {[%clk 0:02:38]}  e6 {[%clk 0:00:47]} 3. Nc3 {[%clk 0:02:37]}  c5 {[%clk 0:00:48]} 4. cxd5 {[%clk 0:02:37]}  cxd4 {[%clk 0:00:48]} 5. Qa4+ {[%clk 0:02:35]}  Bd7 {[%clk 0:00:48]} 6. Qxd4 {[%clk 0:02:36]}  exd5 {[%clk 0:00:49]} 7. Qxd5 {[%clk 0:02:37]}  Nc6 {[%clk 0:00:48]} 8. Nf3 {[%clk 0:02:36]}  Nf6 {[%clk 0:00:48]} 9. Qd1 {[%clk 0:02:36]}  Bc5 {[%clk 0:00:47]} 10. e3 {[%clk 0:02:36]}  O-O {[%clk 0:00:46]} 11. Be2 {[%clk 0:02:34]}  Qe7 {[%clk 0:00:47]} 12. O-O {[%clk 0:02:34]}  Rad8 {[%clk 0:00:47]} 13. a3 {[%clk 0:02:31]}  Rfe8 {[%clk 0:00:45]} 14. Qc2 {[%clk 0:02:30]}  Bd6 {[%clk 0:00:45]} 15. b4 {[%clk 0:02:25]}  Ne5 {[%clk 0:00:45]} 16. Bb2 {[%clk 0:02:24]}  Bg4 {[%clk 0:00:45]} 17. Nxe5 {[%clk 0:02:17]}  Qxe5 {[%clk 0:00:44]} 18. g3 {[%clk 0:02:16]}  Qh5 {[%clk 0:00:43]} 19. Rfd1 {[%clk 0:01:59]}  Bxe2 {[%clk 0:00:37]} 20. Qxe2 {[%clk 0:02:00]}  Ng4 {[%clk 0:00:36]} 21. h4 {[%clk 0:01:56]}  Re6 {[%clk 0:00:21]} 22. Rd5 {[%clk 0:01:48]}  f5 {[%clk 0:00:21]} 23. Nb5 {[%clk 0:01:38]}  Be7 {[%clk 0:00:20]} 24. Rxd8+ {[%clk 0:01:36]}  Bxd8 {[%clk 0:00:21]} 25. Qc4 {[%clk 0:01:30]}  Qf7 {[%clk 0:00:20]} 26. Rd1 {[%clk 0:01:23]}  Bb6 {[%clk 0:00:20]} 27. Nd6 {[%clk 0:01:13]}  Qd7 {[%clk 0:00:18]} 28. Rd3 {[%clk 0:01:01]}  Kf8 {[%clk 0:00:09]} 29. Bxg7+ {[%clk 0:00:54]}  Qxg7 {[%clk 0:00:01]} 30. Qc8+ {[%clk 0:00:51]}  Ke7 {[%clk 0:00:01]} 31. Nxf5+ {[%clk 0:00:51]} 1-0


[Site "https://www.chess.com"]

[Event "Titled Tuesday Blitz January 11 2022"]
[White "Dev, Shah"]
[Black "Maximov, Dmitry"]
[WhiteFideId "35019058"]
[BlackFideId "14105659"]
[WhiteElo "2098"]
[BlackElo "2494"]
[Result "0-1"]
[Round "08"]
[TimeControl "180+1"]
[Date "2022.01.11"]
[WhiteClock "0:00:05"]
[BlackClock "0:00:13"]

1. d4 {[%clk 0:03:00]}  Nf6 {[%clk 0:02:59]} 2. c4 {[%clk 0:02:58]}  g6 {[%clk 0:03:00]} 3. Nc3 {[%clk 0:02:52]}  Bg7 {[%clk 0:03:00]} 4. Nf3 {[%clk 0:02:50]}  O-O {[%clk 0:03:01]} 5. g3 {[%clk 0:02:49]}  d6 {[%clk 0:03:01]} 6. Bg2 {[%clk 0:02:49]}  Nbd7 {[%clk 0:03:01]} 7. O-O {[%clk 0:02:49]}  e5 {[%clk 0:03:02]} 8. e4 {[%clk 0:02:50]}  c6 {[%clk 0:03:02]} 9. Be3 {[%clk 0:02:49]}  a5 {[%clk 0:02:55]} 10. h3 {[%clk 0:02:48]}  exd4 {[%clk 0:02:53]} 11. Nxd4 {[%clk 0:02:46]}  Re8 {[%clk 0:02:53]} 12. Qc2 {[%clk 0:02:44]}  Nc5 {[%clk 0:02:48]} 13. b3 {[%clk 0:02:42]}  Qe7 {[%clk 0:02:44]} 14. Rfe1 {[%clk 0:02:38]}  Nfd7 {[%clk 0:02:40]} 15. Rad1 {[%clk 0:02:33]}  Na6 {[%clk 0:02:37]} 16. f4 {[%clk 0:02:21]}  Ndc5 {[%clk 0:02:37]} 17. Qf2 {[%clk 0:01:57]}  h5 {[%clk 0:02:32]} 18. Kh2 {[%clk 0:01:54]}  Nb4 {[%clk 0:02:28]} 19. Qf3 {[%clk 0:01:47]}  a4 {[%clk 0:02:05]} 20. a3 {[%clk 0:01:40]}  Nbd3 {[%clk 0:02:05]} 21. b4 {[%clk 0:01:33]}  Nxe1 {[%clk 0:02:04]} 22. Rxe1 {[%clk 0:01:33]}  Nb3 {[%clk 0:01:59]} 23. Rd1 {[%clk 0:01:29]}  Be6 {[%clk 0:01:50]} 24. Bf1 {[%clk 0:01:21]}  Qf6 {[%clk 0:01:29]} 25. f5 {[%clk 0:01:00]}  Bd7 {[%clk 0:01:21]} 26. Bf2 {[%clk 0:00:50]}  gxf5 {[%clk 0:01:09]} 27. exf5 {[%clk 0:00:46]}  Nxd4 {[%clk 0:00:59]} 28. Rxd4 {[%clk 0:00:40]}  Qxf5 {[%clk 0:00:52]} 29. Rf4 {[%clk 0:00:40]}  Qc2 {[%clk 0:00:45]} 30. Rxf7 {[%clk 0:00:27]}  Qxc3 {[%clk 0:00:39]} 31. Qxc3 {[%clk 0:00:27]}  Bxc3 {[%clk 0:00:38]} 32. Rxd7 {[%clk 0:00:28]}  Rf8 {[%clk 0:00:36]} 33. Kg1 {[%clk 0:00:21]}  Rf7 {[%clk 0:00:36]} 34. Rxd6 {[%clk 0:00:21]}  Raf8 {[%clk 0:00:35]} 35. Rg6+ {[%clk 0:00:15]}  Bg7 {[%clk 0:00:34]} 36. Rxg7+ {[%clk 0:00:07]}  Kxg7 {[%clk 0:00:31]} 37. Bd4+ {[%clk 0:00:07]}  Kg8 {[%clk 0:00:29]} 38. Be2 {[%clk 0:00:06]}  Rd7 {[%clk 0:00:24]} 39. Bc5 {[%clk 0:00:05]}  Re8 {[%clk 0:00:23]} 40. Bxh5 {[%clk 0:00:05]}  Re1+ {[%clk 0:00:16]} 41. Kf2 {[%clk 0:00:05]}  Ra1 {[%clk 0:00:16]} 42. Bg4 {[%clk 0:00:05]}  Rd2+ {[%clk 0:00:15]} 43. Ke3 {[%clk 0:00:06]}  Rg2 {[%clk 0:00:14]} 44. b5 {[%clk 0:00:04]}  Rxg3+ {[%clk 0:00:14]} 45. Kf4 {[%clk 0:00:03]}  Rxg4+ {[%clk 0:00:13]} 46. hxg4 {[%clk 0:00:03]}  cxb5 {[%clk 0:00:13]} 47. cxb5 {[%clk 0:00:04]}  Rb1 {[%clk 0:00:14]} 48. Bb4 {[%clk 0:00:04]}  Rxb4+ {[%clk 0:00:12]} 49. axb4 {[%clk 0:00:05]}  a3 {[%clk 0:00:13]} 0-1


[Site "https://www.chess.com"]